Cogmind - Beta 12 @@@ ROGUE MODE // 2023.07.12 @ 18:52:07 Player: Zurdo Result: Destroyed by P-60 Hacker with Shock Rifle Performance ------------- Evolutions (1) 500 Regions Visited (4) 800 Robots Destroyed (36) 180 Value Destroyed (898) 898 Prototype IDs (0) 0 Alien Tech Used (0) 0 Bonus (711) 711 TOTAL SCORE: 3089 Bonus ------- High Alert Combat Kills 11 Entered Garrisons 200 Used RIF Installer 500 Cogmind --------- Core Integrity 0/400 Matter 239/300 Energy 55/100 System Corruption 4% Temperature Cool (0) Movement Core (450) Ox8 Location -9/Garrison Parts ------- > --- POWER (1) -------- (None) > --- PROPULSION (2) --- (None) > --- UTILITY (4) ------ Heat Sink Large Storage Unit Core Shielding > --- WEAPON (2) ------- Small Laser Heavy Assault Rifle > --- INVENTORY (15) --- Ion Engine Aluminum Leg Aluminum Leg Aluminum Leg Heat Sink ECM Suite Relay Coupler [Grunt] (40) Light Assault Rifle Grenade Launcher Peak State ------------ > --- POWER ------------ Improved Ion Engine > --- PROPULSION ------- Aluminum Leg Aluminum Leg > --- UTILITY ---------- Heat Sink Large Storage Unit ECM Suite Core Shielding > --- WEAPON ----------- Light Assault Rifle Light Assault Rifle > --- INVENTORY -------- Ion Engine Aluminum Leg Aluminum Leg Aluminum Leg Heat Sink Small Laser Light Assault Rifle Light Assault Rifle Grenade Launcher Grenade Launcher [Rating: 11] Favorites ----------- Power Ion Engine Engine Ion Engine Propulsion Aluminum Leg Leg Aluminum Leg Utility Large Storage Unit Device ECM Suite Storage Large Storage Unit Protection Light Armor Plating Weapon Light Assault Rifle Energy Gun Medium Laser Ballistic Gun Light Assault Rifle Launcher Grenade Launcher Build | -11 -10 -9 -9 -9 ------- Run | Jun Mat Mat Sto Gar Slots Evolved 2 | . . 2 . . Power . | . . . . . Propulsion . | . . . . . Utility 2 | . . 2 . . Weapon . | . . . . . Parts Attached 42 | 5 5 1 7 24 Power 3 | 1 . . . 2 Engine 3 | 1 . . . 2 Core . | . . . . . Reactor . | . . . . . Propulsion 14 | 2 . . 4 8 Treads . | . . . . . Leg 14 | 2 . . 4 8 Wheel . | . . . . . Hover . | . . . . . Flight . | . . . . . Utility 11 | . 3 1 2 5 Device 5 | . . 1 1 3 Storage 1 | . 1 . . . Processor . | . . . . . Hackware . | . . . . . Protection 5 | . 2 . 1 2 Artifact . | . . . . . Weapon 14 | 2 2 . 1 9 Energy Gun 5 | 1 1 . 1 2 Energy Cannon . | . . . . . Ballistic Gun 7 | 1 . . . 6 Ballistic Cannon . | . . . . . Launcher 2 | . 1 . . 1 Special Weapon . | . . . . . Impact Weapon . | . . . . . Slashing Weapon . | . . . . . Piercing Weapon . | . . . . . Special Melee Weapon . | . . . . . Unidentified Prototypes . | . . . . . Parts Lost 19 | . . . 4 15 Power 3 | . . . . 3 Propulsion 4 | . . . . 4 Utility 5 | . . . 3 2 Weapon 7 | . . . 1 6 Highest Loss Streak 8 | . . . 2 8 To Critical Strikes . | . . . . . Average Slot Usage (%) 93 | . 97 86 88 94 Engine 11 | . 14 11 11 10 Leg 23 | . 28 22 22 21 Device 11 | . . 9 13 17 Storage 11 | . 13 11 11 11 Protection 11 | . 12 11 8 11 Energy Gun 9 | . 14 11 15 5 Ballistic Gun 13 | . 14 11 6 15 Naked Turns . | . . . . . Heaviest Build 36 | 9 32 34 36 36 Greatest Support 20 | 20 20 20 20 20 Greatest Overweight (x) 1 | . 1 1 1 1 Average Overweight (x) . | . . 1 1 1 Largest Inventory Capacity 15 | 5 15 15 15 15 Average Capacity 14 | 5 14 15 15 15 Most Carried 13 | . 5 5 7 13 Average Carried 6 | . 2 5 5 8 Final Capacity 15 | 5 15 15 15 15 Final Carried 9 | . 5 5 6 9 Class Distribution -------------------- 63% | Mutant 36% | Scavenger-Mutant Dominant Class ---------------- Mutant | -10/Materials Mutant | -9/Materials Mutant | -9/Storage Scavenger-Mutant | -9/Garrison Resources | -11 -10 -9 -9 -9 ----------- Run | Jun Mat Mat Sto Gar Matter Collected 739 | 189 178 6 140 226 Remotely . | . . . . . Salvage Created 1175 | . 260 14 424 477 Parts 74 | . 23 1 16 34 Haulers Intercepted . | . . . . . Recyclers Shooed . | . . . . . Parts Field Recycled . | . . . . . Retrieved Matter . | . . . . . Parts Self-Destructed . | . . . . . Prevented . | . . . . . Kills | -11 -10 -9 -9 -9 ------- Run | Jun Mat Mat Sto Gar Combat Hostiles Destroyed 29 | . 6 . 8 15 Guns 28 | . 6 . 7 15 Classes Destroyed 7 | . 4 . 3 . Builder 2 | . 2 . . . Recycler 1 | . . . 1 . Watcher 4 | . 3 1 . . Swarmer 10 | . 3 . . 7 Grunt 14 | . 3 . 5 6 Duelist 2 | . . . 1 1 Sentry 3 | . . . 2 1 Best Kill Streak 6 | . 6 1 2 4 Combat Bots Only 4 | . 3 . 2 4 Max Kills in Single Turn 3 | . 3 1 1 2 Gunslinging 1 | . . . . 1 Exploded . | . . . . . Melee . | . . . . . Uniques/NPCs Destroyed . | . . . . . Combat | -11 -10 -9 -9 -9 -------- Run | Jun Mat Mat Sto Gar Damage Taken 2337 | . 121 16 682 1518 Core 423 | . 14 . 121 288 Absorbed by Shields . | . . . . . Redirected to Shielding 16 | . . . . 16 Core Remaining (%) 97 | 100 94 . . . Volleys Fired 136 | . 19 2 63 52 Largest 2 | . 2 2 2 2 Hottest 106 | . 70 70 106 106 Shots Fired 244 | . 38 4 114 88 Gun 240 | . 37 4 114 85 Cannon . | . . . . . Launcher 4 | . 1 . . 3 Special . | . . . . . Kinetic 109 | . 19 2 30 58 Thermal 131 | . 18 2 84 27 Explosive 4 | . 1 . . 3 Electromagnetic . | . . . . . Robot Hit Streak 11 | . 7 5 11 7 Robot Miss Streak 3 | . 3 . 3 3 Penetration Max . | . . . . . Secondary Targets 4 | . 1 . 1 2 Max Gunslinging Chain 1 | . 1 . 1 1 Shots Hit Robots 130 | . 18 3 54 55 Core Hits 62 | . 16 1 16 29 Critical Kills 1 | . 1 . . . Critical Parts Destroyed . | . . . . . Critical Strikes 11 | . 4 . 5 2 Burn 10 | . 3 . 5 2 Destroy 1 | . 1 . . . Melee Attacks . | . . . . . Impact . | . . . . . Slashing . | . . . . . Piercing . | . . . . . Sneak Attacks . | . . . . . Combat Hostiles . | . . . . . Follow-up Attacks . | . . . . . Damage Inflicted 1698 | . 342 41 711 604 Guns 1567 | . 211 41 711 604 Cannons . | . . . . . Explosions 131 | . 131 . . . Melee . | . . . . . Ramming . | . . . . . Kinetic 551 | . 86 15 110 340 Thermal 1016 | . 125 26 601 264 Explosive 131 | . 131 . . . Electromagnetic . | . . . . . Impact . | . . . . . Slashing . | . . . . . Piercing . | . . . . . Highest Corruption 4 | . . . . 4 Average Corruption 2 | . . . . 2 Corruption Purged . | . . . . . Corruption Blocked . | . . . . . Effects 2 | . . . . 2 Matter Fused 1 | . . . . 1 Energy Discharges 1 | . . . . 1 Overload Shots . | . . . . . Overflow Damage 10 | . 10 . . . Projectiles . | . . . . . Explosions 10 | . 10 . . . Melee . | . . . . . Knockbacks . | . . . . . Impact . | . . . . . Kinetic . | . . . . . Secondary . | . . . . . Self-Inflicted Damage 36 | . . . . 36 Shots 1 | . . . . 1 Rammed . | . . . . . Targets Rammed . | . . . . . Kicked . | . . . . . Crushed . | . . . . . Highest Temperature 271 | . 132 18 271 118 Average Temperature 73 | . 39 10 94 49 Received Heat Transfer 594 | . 42 . 291 261 Effects 4 | . . . 4 . Energy Bleed 1 | . . . 1 . Interference 3 | . . . 3 . Siege Activations . | . . . . . Robots Corrupted . | . . . . . Combat Hostiles . | . . . . . Parts Fried . | . . . . . Impact Corruptions . | . . . . . Robots Melted 1 | . . . 1 . Combat Hostiles 1 | . . . 1 . Parts Melted 9 | . 1 . 7 1 Heat Transferred 3565 | . 592 74 2035 864 Parts Sabotaged . | . . . . . Parts Stolen . | . . . . . Parts Stripped . | . . . . . Power Chain Reactions . | . . . . . Missiles Intercepted . | . . . . . Alert | -11 -10 -9 -9 -9 ------- Run | Jun Mat Mat Sto Gar Peak Influence 569 | . 131 43 223 569 Initial 144 | . . 1 17 144 Average 193 | . 53 13 105 345 Maximum Alert Level 2 | . . . 1 2 Low Security (%) 59 | 100 100 100 86 18 Level 1 25 | . . . 13 50 Level 2 14 | . . . . 31 Level 3 . | . . . . . Level 4 . | . . . . . Level 5 . | . . . . . High Security . | . . . . . Max Security . | . . . . . Squads Dispatched 3 | . 1 . 2 . Investigation . | . . . . . Extermination . | . . . . . Reinforcement 2 | . 1 . 1 . Assault . | . . . . . Garrison 1 | . . . 1 . Intercept . | . . . . . Searches Triggered . | . . . . . Construction Impeded . | . . . . . Haulers Reinforced . | . . . . . Active Scanning Responses . | . . . . . Cargo Convoy Interrupts . | . . . . . Stealth | -11 -10 -9 -9 -9 --------- Run | Jun Mat Mat Sto Gar Distress Signals 2 | . . . 2 . Communications Jammed . | . . . . . Distress Signals . | . . . . . Times Spotted 49 | . 12 2 11 24 Peak Tracking Total 6 | . 3 1 2 6 Tactical Retreats 3 | . . . 1 2 Traps | -11 -10 -9 -9 -9 ------- Run | Jun Mat Mat Sto Gar Traps Triggered 8 | . 1 . . 7 Indirectly . | . . . . . Trap Hack Attempts . | . . . . . Triggered . | . . . . . Disarmed 4 | . 4 . . . Reprogrammed . | . . . . . Reused . | . . . . . Traps Extracted . | . . . . . Installed . | . . . . . Triggered . | . . . . . Machines | -11 -10 -9 -9 -9 ---------- Run | Jun Mat Mat Sto Gar Machines Disabled . | . . . . . Max in Single Turn . | . . . . . Machines Repaired . | . . . . . Machines Sabotaged . | . . . . . Overloaded Fab Kills . | . . . . . Hacking | -11 -10 -9 -9 -9 --------- Run | Jun Mat Mat Sto Gar Machines Accessed 8 | . 2 3 1 2 Terminals 6 | . 2 2 . 2 Fabricators . | . . . . . Repair Stations . | . . . . . Recycling Units 1 | . . 1 . . Scanalyzers . | . . . . . Garrison Access 1 | . . . 1 . Total Hacks 16 | . 6 6 1 3 Successful 10 | . 4 4 1 1 Failed 6 | . 2 2 . 2 Catastrophic 1 | . . . . 1 Database Lockouts . | . . . . . Manual . | . . . . . Terminals 13 | . 6 4 . 3 Fabricators . | . . . . . Repair Stations . | . . . . . Recycling Units 2 | . . 2 . . Scanalyzers . | . . . . . Garrison Access 1 | . . . 1 . Terminal Hacks 7 | . 4 2 . 1 Robot Analysis 1 | . . 1 . . Alert Level 1 | . 1 . . . Disarm Traps 1 | . 1 . . . Patrol Status 1 | . 1 . . . Zone Layout 2 | . 1 1 . . Garrison Registry 1 | . . . . 1 Fabricator Hacks . | . . . . . Repair Station Hacks . | . . . . . Recycling Unit Hacks 2 | . . 2 . . Process 1 | . . 1 . . Retrieve Matter 1 | . . 1 . . Scanalyzer . | . . . . . Garrison Access Hacks 1 | . . . 1 . Unlock Access 1 | . . . 1 . Unauthorized Hacks . | . . . . . Terminals . | . . . . . Fabricators . | . . . . . Repair Stations . | . . . . . Recycling Units . | . . . . . Scanalyzers . | . . . . . Garrison Access . | . . . . . Data Cores Recovered . | . . . . . Used . | . . . . . Hacking Detections 5 | . 2 1 . 2 Full Trace Events . | . . . . . Feedback Events . | . . . . . Feedback Blocked . | . . . . . Robot Schematics Acquired . | . . . . . Robots Built . | . . . . . Authchips . | . . . . . Time . | . . . . . Total Robot Build Rating . | . . . . . Part Schematics Acquired . | . . . . . Parts Built . | . . . . . Authchips . | . . . . . Time . | . . . . . Total Part Build Rating . | . . . . . Parts Repaired . | . . . . . Time . | . . . . . Parts Recycled . | . . . . . Recycled Matter 10 | . . 10 . . Retrieved Matter 10 | . . 10 . . Retrieved Components . | . . . . . Parts Scanalyzed . | . . . . . Part Schematics Acquired . | . . . . . Parts Damaged . | . . . . . Bothacking | -11 -10 -9 -9 -9 ------------ Run | Jun Mat Mat Sto Gar Used RIF Installer 1 | . . . . 1 Robots Hacked . | . . . . . Non-combat . | . . . . . Combat . | . . . . . Robot Hacks Applied . | . . . . . Relay Couplers Released . | . . . . . Fabnet Peak Effective % . | . . . . . Robots Rewired . | . . . . . Allies Hacked . | . . . . . Hacks Repelled . | . . . . . Allies | -11 -10 -9 -9 -9 -------- Run | Jun Mat Mat Sto Gar Total Allies . | . . . . . Largest Group . | . . . . . Highest-Rated Group . | . . . . . Highest-Rated Ally . | . . . . . Total Orders . | . . . . . Ally Attacks . | . . . . . Total Damage . | . . . . . Kills . | . . . . . Allies Corrupted . | . . . . . Allies Melted . | . . . . . Intel | -11 -10 -9 -9 -9 ------- Run | Jun Mat Mat Sto Gar Robot Analysis Total 1 | . . 1 . . Derelict Logs Recovered . | . . . . . Drone Launches . | . . . . . Drone Recoveries . | . . . . . Exploration | -11 -10 -9 -9 -9 ------------- Run | Jun Mat Mat Sto Gar Turns Passed 3263 | 56 871 384 394 1558 Spaces Moved 1461 | 44 419 197 104 697 Core 5 | 5 . . . . Treads . | . . . . . Legs 1456 | 39 419 197 104 697 Wheels . | . . . . . Hover . | . . . . . Flight . | . . . . . Fastest Speed 50 | 50 120 190 190 190 Average Speed 186 | 112 184 190 190 190 Slowest Speed 190 | 120 190 190 190 190 Overloaded Moves . | . . . . . Propulsion Burnouts . | . . . . . Robots Hopped . | . . . . . Cave-ins Triggered . | . . . . . Exploration Rate (%) 34 | 4 66 18 16 69 Regions Visited 4 Branch Regions 1 Pre-discovered Areas . | . . . . . Known Exits Taken 1 | . . . 1 . Unknown Exits Taken 3 | 1 1 1 . . Scrap Searched . | . . . . . Spaces Dug . | . . . . . Terrain Destroyed 19 | . 3 . . 16 Melee . | . . . . . Projectile . | . . . . . AOE 19 | . 3 . . 16 Terrain Rammed . | . . . . . Walls Destroyed . | . . . . . Machines Disabled . | . . . . . Actions | -11 -10 -9 -9 -9 --------- Run | Jun Mat Mat Sto Gar Total 1760 | 48 477 203 184 848 Wait 77 | . 30 4 9 34 Move 1458 | 43 418 196 104 697 Hop . | . . . . . Pick Up 13 | . 5 . 1 7 Fast Attach 12 | 5 1 1 . 5 Attach 12 | . 1 . 3 8 Detach . | . . . . . Swap 18 | . 3 . 4 11 Drop 4 | . . . . 4 Fire 136 | . 19 2 63 52 Melee . | . . . . . Ram . | . . . . . Kick . | . . . . . Crush . | . . . . . Escape Stasis 30 | . . . . 30 Rewire . | . . . . . Trap . | . . . . . Miscellaneous . | . . . . . Route ------- -11/Junkyard -10/Materials (discovered 4 exits: *Mat x2 / [*Min x2]) -9/Materials (discovered 2 exits: [*Mat] / *Sto) -9/Storage -9/Garrison (discovered 3 exits: [*Rec x3]) History --------- Turn | Location | Event 3 | -11/Junkyard | Discovered new exit (range 15) 57 | -11/Junkyard | Entered Materials 305 | -10/Materials | Build established: Mutant 607 | -10/Materials | Discovered new exit (range 16) 717 | -10/Materials | Discovered new exit (range 16) 857 | -10/Materials | Discovered new exit (range 16) 903 | -10/Materials | Discovered new exit (range 7) 928 | -10/Materials | Entered another Materials area 928 | -9/Materials | Evolved 2 slots: Utility x2 1250 | -9/Materials | Discovered new exit (range 15) 1255 | -9/Materials | Discovered new exit (range 14) 1312 | -9/Materials | Entered Storage 1608 | -9/Storage | Garrison activated, responded to threat 1706 | -9/Storage | Identified exit to Garrison 1706 | -9/Storage | Entered Garrison 1784 | -9/Garrison | Triggered checkpoint 2046 | -9/Garrison | Triggered checkpoint 2055 | -9/Garrison | Core integrity fell below 50% 2075 | -9/Garrison | Core integrity fell below 20% 2097 | -9/Garrison | Lost 5 parts (1p2n2w) 2198 | -9/Garrison | Triggered checkpoint 2214 | -9/Garrison | Discovered new exit (range 15) 2352 | -9/Garrison | Triggered checkpoint 2366 | -9/Garrison | Build established: Scavenger-Mutant 2434 | -9/Garrison | Triggered checkpoint 2546 | -9/Garrison | Discovered new exit (range 10) 2614 | -9/Garrison | Triggered checkpoint 2780 | -9/Garrison | Triggered checkpoint 2881 | -9/Garrison | Discovered new exit (range 10) 2892 | -9/Garrison | Discovered new exit (range 46) 2892 | -9/Garrison | Discovered new exit (range 8) 2892 | -9/Garrison | Discovered new exit (range 75) 2951 | -9/Garrison | Installed Relay Interface Framework 3056 | -9/Garrison | Triggered checkpoint 3264 | -9/Garrison | Destroyed by P-60 Hacker with Shock Rifle Last Messages --------------- Downloaded map data. Downloaded component registry. Downloaded security status. 02906_ ALERT: Garrison interior compromised. Initiating installation procedure... 02951_ Relay Interface Framework installed. With RIF installed, you can review your current list of abilities via the new button at the top-right of the HUD, or Spacebar+i. 03223_ The unstable cave ceiling collapses. 03235_ P-60 Hacker springs to life. 03240_ System corrupted: Matter fused (-7). 03240_ Grenade Launcher destroyed. 03240_ Lgt. Assault Rifle destroyed. 03242_ Acquired Relay Coupler [Grunt]. 03243_ Aluminum Leg destroyed. 03243_ Lgt. Armor Plating destroyed. 03254_ Imp. Ion Engine destroyed. 03255_ Aluminum Leg destroyed. 03256_ System corrupted: Energy discharge (-27). 03257_ Lgt. Assault Rifle destroyed. Map ----- +----------------------------------------------------+ | | | | | | | | | | | | | | | ????????????????????????????????????????? | | ????????????????????????????????????????? | | ????????????????????????????????????????? | | ????????????????????????????????????????? | | ????????????????????????????????????????? | | ????????????????????????????????????????? | | ????????????????????????????????????????? | | ????????????????????????????????????????? | | ????????????????????????????????????????? | | ????????????????????????????????????????? | | ????????????????????########????????????? | | ????????????????????#""""""######???????? | | ????????????????????#" " #???????? | | ????????????????????#" #???????? | | ????????????????????#" #???????# | | ??????????????????###" " ######### | | ???????????########"""" """ + | | ???????????#! p ##### " #### #### | | ???????????# # @##### #??# #??? | | ???????????#+## # #??# #??? | | ???????????# p ####+##?? | | ???????????#+## # ## #?? | | ???????????# #p!## ############""""### | | ???????????#! + ### ##??### # | | ???????????######## #??#"# #####+## # | | ??????????????????# < #??#" #???# ## # | | ??????????????????# ##??#" #???# ## # | | ??????????????????### #???#" #???# ## # | | ????????????????????# #???#"# #???# ## # | | ????????????????????# #???###+##### ## # | | ????????????????????# #?????# ##^# | | ???????????????###### #?????# ######## # | | ???????????????#" #######+######## # | | ???????????????#"T"## | | ???????????????###### | | ????????????????????##########+### ##### | | ?????????????????????????????# #?# #???? | | ?????????????????????????????# #?# #???? | | ?????????????????????????????# #?# #???? | | ?????????????????????????????# ### ##### | | ?????????????????????????????# + + | | ?????????????????????????????##### ##### | | ?????????????????????????????????# #???? | +----------------------------------------------------+ Best States ------------- Heat Dissipation 38 Energy Generation 12 Energy Capacity 265 Matter Stores 300 Matter Capacity 300 Sight Range 16 Robot Scan Range 14 Terrain Scan Density 10 ECM Strength 1 Armor Coverage 150 Core Shielding 20 Evasion (%) 55 Item Schematics ----------------- None Robot Schematics ------------------ None Fabricated ------------ Nothing Alien Tech Used ----------------- None Achievements -------------- None Challenges ------------ None Game ------ Seed ThrowingArmoredLog Manual? 0 Play Time 00:25:41 Cumulative 8.3 hours Start 2023.07.12 @ 18:22:10 End 2023.07.12 @ 18:52:07 Sessions 1 Manual Loads 0 Difficulty Rogue Special Mode None Game No. 6 Rogue 4 Adventurer 2 Explorer 0 Win Type - Total 0 Types 0/0/0/0/0/0/0/0/0 Lore% 11 Gallery% 14 Achievement% 15 Wizard Run 0 Options --------- ASCII 0 Keyboard 0 Movement Mouse Keybinds 0 Fullscreen 1 Font 18/SmallcapsGlow Map View 76x50 Tactical HUD 1 Map Filters NONE Filters NONE Steam 1 RUN: 9e76e794-ed21-4573-aa2a-3bea5b669861